[Event "Titled Tuesday Blitz August 08 Early 2023"]
[White "Llanos, Guillermo"]
[Black "Wagner, Dennis"]
[WhiteFideId "100358"]
[BlackFideId "24650684"]
[WhiteElo "2395"]
[BlackElo "2740"]
[Result "0-1"]
[Round "2"]
[TimeControl "180+1"]
[Date "2023.08.08"]
[WhiteClock "0:00:40"]
[BlackClock "0:00:41"]
[Board "155"]

1. b3 {[%clk 0:02:53]}  e5 {[%clk 0:02:57]} 2. Bb2 {[%clk 0:02:51]}  Nc6 {[%clk 0:02:57]} 3. e3 {[%clk 0:02:50]}  d5 {[%clk 0:02:54]} 4. Bb5 {[%clk 0:02:50]}  Ne7 {[%clk 0:02:55]} 5. Bxe5 {[%clk 0:02:40]}  a6 {[%clk 0:02:55]} 6. Bxc6+ {[%clk 0:02:39]}  Nxc6 {[%clk 0:02:56]} 7. Bb2 {[%clk 0:02:39]}  h5 {[%clk 0:02:52]} 8. Ne2 {[%clk 0:02:32]}  Bd6 {[%clk 0:02:47]} 9. d4 {[%clk 0:02:24]}  h4 {[%clk 0:02:44]} 10. h3 {[%clk 0:02:23]}  Qg5 {[%clk 0:02:44]} 11. Kf1 {[%clk 0:02:22]}  Bf5 {[%clk 0:02:39]} 12. Nd2 {[%clk 0:02:21]}  O-O {[%clk 0:02:35]} 13. Nf3 {[%clk 0:02:21]}  Qh6 {[%clk 0:02:33]} 14. c4 {[%clk 0:02:12]}  Rfe8 {[%clk 0:02:27]} 15. c5 {[%clk 0:02:11]}  Bf8 {[%clk 0:02:25]} 16. Nf4 {[%clk 0:02:04]}  Rad8 {[%clk 0:02:12]} 17. Nd3 {[%clk 0:01:58]}  f6 {[%clk 0:02:05]} 18. a3 {[%clk 0:01:52]}  Re7 {[%clk 0:01:55]} 19. b4 {[%clk 0:01:51]}  g5 {[%clk 0:01:55]} 20. Nh2 {[%clk 0:01:48]}  Qg6 {[%clk 0:01:54]} 21. Ne1 {[%clk 0:01:46]}  Rde8 {[%clk 0:01:52]} 22. Bc1 {[%clk 0:01:41]}  Kh7 {[%clk 0:01:51]} 23. Bd2 {[%clk 0:01:39]}  Bg7 {[%clk 0:01:27]} 24. Ra2 {[%clk 0:01:34]}  Bd3+ {[%clk 0:01:22]} 25. Nxd3 {[%clk 0:01:26]}  Qxd3+ {[%clk 0:01:21]} 26. Kg1 {[%clk 0:01:21]}  Nxd4 {[%clk 0:01:04]} 27. Nf3 {[%clk 0:00:59]}  Nxf3+ {[%clk 0:00:44]} 28. Qxf3 {[%clk 0:00:56]}  Qb1+ {[%clk 0:00:41]} 29. Kh2 {[%clk 0:00:55]}  Qxa2 {[%clk 0:00:42]} 30. Qh5+ {[%clk 0:00:40]}  Kg8 {[%clk 0:00:41]} 0-1


[Site "https://www.chess.com"]

[Event "Titled Tuesday Blitz August 08 Early 2023"]
[White "Buscar, Michael"]
[Black "Khachiyan, Melikset"]
[WhiteFideId "2603616"]
[BlackFideId "13300512"]
[WhiteElo "2386"]
[BlackElo "2702"]
[Result "1/2-1/2"]
[Round "2"]
[TimeControl "180+1"]
[Date "2023.08.08"]
[WhiteClock "0:01:18"]
[BlackClock "0:00:42"]
[Board "158"]

1. d4 {[%clk 0:02:58]}  Nf6 {[%clk 0:02:41]} 2. c4 {[%clk 0:02:58]}  g6 {[%clk 0:02:41]} 3. Nc3 {[%clk 0:02:56]}  Bg7 {[%clk 0:02:41]} 4. e4 {[%clk 0:02:56]}  O-O {[%clk 0:02:41]} 5. Nf3 {[%clk 0:02:57]}  d6 {[%clk 0:02:42]} 6. Be2 {[%clk 0:02:57]}  Bg4 {[%clk 0:02:42]} 7. h3 {[%clk 0:02:57]}  Bxf3 {[%clk 0:02:42]} 8. Bxf3 {[%clk 0:02:57]}  Nfd7 {[%clk 0:02:41]} 9. Bg5 {[%clk 0:02:56]}  a6 {[%clk 0:02:41]} 10. O-O {[%clk 0:02:54]}  c5 {[%clk 0:02:41]} 11. Be3 {[%clk 0:02:51]}  Nc6 {[%clk 0:02:38]} 12. Ne2 {[%clk 0:02:51]}  Qb6 {[%clk 0:02:28]} 13. dxc5 {[%clk 0:02:47]}  Nxc5 {[%clk 0:02:27]} 14. Rb1 {[%clk 0:02:42]}  a5 {[%clk 0:02:16]} 15. Nd4 {[%clk 0:02:37]}  Ne5 {[%clk 0:02:12]} 16. Be2 {[%clk 0:02:37]}  Rac8 {[%clk 0:01:49]} 17. a3 {[%clk 0:02:27]}  Qa6 {[%clk 0:01:49]} 18. b4 {[%clk 0:02:14]}  axb4 {[%clk 0:01:48]} 19. axb4 {[%clk 0:02:15]}  Nxe4 {[%clk 0:01:46]} 20. c5 {[%clk 0:02:15]}  Qa2 {[%clk 0:01:28]} 21. Ra1 {[%clk 0:01:59]}  Qd5 {[%clk 0:01:24]} 22. cxd6 {[%clk 0:01:40]}  exd6 {[%clk 0:01:21]} 23. Ra5 {[%clk 0:01:38]}  b5 {[%clk 0:01:08]} 24. Nxb5 {[%clk 0:01:27]}  Qxd1 {[%clk 0:01:06]} 25. Rxd1 {[%clk 0:01:27]}  Nc4 {[%clk 0:01:03]} 26. Bxc4 {[%clk 0:01:21]}  Rxc4 {[%clk 0:01:02]} 27. Nxd6 {[%clk 0:01:21]}  Nxd6 {[%clk 0:00:51]} 28. Rxd6 {[%clk 0:01:21]}  Rxb4 {[%clk 0:00:52]} 29. Rd1 {[%clk 0:01:19]}  Rc4 {[%clk 0:00:42]} 30. Rc5 {[%clk 0:01:18]} 1/2-1/2


[Site "https://www.chess.com"]

[Event "Titled Tuesday Blitz August 08 Early 2023"]
[White "Gubajdullin, Alexei"]
[Black "EsmeraldasAnderson03"]
[WhiteFideId "4141202"]
[WhiteElo "2687"]
[BlackElo "2378"]
[Result "1-0"]
[Round "2"]
[TimeControl "180+1"]
[Date "2023.08.08"]
[WhiteClock "0:01:50"]
[BlackClock "0:00:51"]
[Board "160"]

1. d4 {[%clk 0:02:59]}  d5 {[%clk 0:02:59]} 2. Nf3 {[%clk 0:02:59]}  Nf6 {[%clk 0:02:59]} 3. Bf4 {[%clk 0:02:59]}  e6 {[%clk 0:02:55]} 4. Nbd2 {[%clk 0:02:58]}  Bd6 {[%clk 0:02:55]} 5. Bg3 {[%clk 0:02:56]}  O-O {[%clk 0:02:55]} 6. e3 {[%clk 0:02:56]}  c5 {[%clk 0:02:43]} 7. c3 {[%clk 0:02:55]}  Qc7 {[%clk 0:02:20]} 8. dxc5 {[%clk 0:02:50]}  Qxc5 {[%clk 0:02:13]} 9. b4 {[%clk 0:02:50]}  Qc7 {[%clk 0:02:13]} 10. c4 {[%clk 0:02:49]}  Bxg3 {[%clk 0:02:11]} 11. hxg3 {[%clk 0:02:49]}  a5 {[%clk 0:02:10]} 12. b5 {[%clk 0:02:44]}  Nbd7 {[%clk 0:02:09]} 13. Qc2 {[%clk 0:02:40]}  h6 {[%clk 0:02:07]} 14. Rc1 {[%clk 0:02:34]}  b6 {[%clk 0:02:05]} 15. Qb1 {[%clk 0:02:30]}  Qd6 {[%clk 0:02:02]} 16. Be2 {[%clk 0:02:18]}  Bb7 {[%clk 0:02:00]} 17. O-O {[%clk 0:02:17]}  Rac8 {[%clk 0:02:00]} 18. Rfd1 {[%clk 0:02:17]}  Nc5 {[%clk 0:01:46]} 19. cxd5 {[%clk 0:02:12]}  Bxd5 {[%clk 0:01:36]} 20. Nc4 {[%clk 0:02:12]}  Qb8 {[%clk 0:01:37]} 21. Nfe5 {[%clk 0:02:11]}  Rfd8 {[%clk 0:01:33]} 22. Bf3 {[%clk 0:02:06]}  Bxf3 {[%clk 0:01:25]} 23. gxf3 {[%clk 0:02:04]}  Qb7 {[%clk 0:01:17]} 24. Nc6 {[%clk 0:02:01]}  Rxd1+ {[%clk 0:01:07]} 25. Rxd1 {[%clk 0:02:00]}  Nd5 {[%clk 0:01:06]} 26. Nd6 {[%clk 0:01:59]}  Qc7 {[%clk 0:01:00]} 27. Nxc8 {[%clk 0:01:54]}  Nc3 {[%clk 0:00:57]} 28. N8e7+ {[%clk 0:01:53]}  Kf8 {[%clk 0:00:55]} 29. Qh7 {[%clk 0:01:51]}  Qxe7 {[%clk 0:00:51]} 30. Qh8# {[%clk 0:01:50]} 1-0


[Site "https://www.chess.com"]

[Event "Titled Tuesday Blitz August 08 Early 2023"]
[White "Nosacheva, Mariya"]
[Black "Markov, Mikhail"]
[WhiteFideId "34111422"]
[BlackFideId "13800698"]
[WhiteElo "2371"]
[BlackElo "2626"]
[Result "1-0"]
[Round "2"]
[TimeControl "180+1"]
[Date "2023.08.08"]
[WhiteClock "0:00:43"]
[BlackClock "0:01:44"]
[Board "164"]

1. e4 {[%clk 0:03:00]}  c5 {[%clk 0:03:00]} 2. Nf3 {[%clk 0:03:01]}  d6 {[%clk 0:03:00]} 3. d4 {[%clk 0:03:01]}  cxd4 {[%clk 0:03:01]} 4. Nxd4 {[%clk 0:03:02]}  Nf6 {[%clk 0:03:02]} 5. Nc3 {[%clk 0:03:02]}  a6 {[%clk 0:03:03]} 6. g3 {[%clk 0:02:57]}  e5 {[%clk 0:03:02]} 7. Nb3 {[%clk 0:02:57]}  Be7 {[%clk 0:03:02]} 8. Bg2 {[%clk 0:02:57]}  O-O {[%clk 0:03:03]} 9. O-O {[%clk 0:02:57]}  b5 {[%clk 0:03:03]} 10. a4 {[%clk 0:02:56]}  bxa4 {[%clk 0:03:00]} 11. Rxa4 {[%clk 0:02:48]}  Nbd7 {[%clk 0:03:01]} 12. Be3 {[%clk 0:02:45]}  Bb7 {[%clk 0:03:00]} 13. Na5 {[%clk 0:02:43]}  Qc7 {[%clk 0:03:00]} 14. Re1 {[%clk 0:02:16]}  Rfb8 {[%clk 0:02:46]} 15. Nxb7 {[%clk 0:02:10]}  Rxb7 {[%clk 0:02:47]} 16. Ra2 {[%clk 0:02:10]}  Nc5 {[%clk 0:02:44]} 17. b3 {[%clk 0:01:57]}  Nxb3 {[%clk 0:02:33]} 18. Na4 {[%clk 0:01:28]}  Nc5 {[%clk 0:02:29]} 19. Nxc5 {[%clk 0:01:28]}  dxc5 {[%clk 0:02:30]} 20. Qa1 {[%clk 0:01:28]}  a5 {[%clk 0:02:27]} 21. Ra4 {[%clk 0:01:21]}  c4 {[%clk 0:02:26]} 22. Bf1 {[%clk 0:01:16]}  c3 {[%clk 0:02:25]} 23. Rc4 {[%clk 0:01:16]}  Qd8 {[%clk 0:02:20]} 24. Rd1 {[%clk 0:01:13]}  Bb4 {[%clk 0:02:19]} 25. Rxd8+ {[%clk 0:01:12]}  Rxd8 {[%clk 0:02:19]} 26. Bc5 {[%clk 0:01:09]}  Bxc5 {[%clk 0:02:13]} 27. Rxc5 {[%clk 0:01:08]}  Nxe4 {[%clk 0:02:14]} 28. Rxe5 {[%clk 0:01:04]}  Nd2 {[%clk 0:02:11]} 29. Qxc3 {[%clk 0:00:59]}  h6 {[%clk 0:02:08]} 30. Qxa5 {[%clk 0:00:56]}  Rbb8 {[%clk 0:02:05]} 31. Re1 {[%clk 0:00:55]}  Nf3+ {[%clk 0:01:59]} 32. Kg2 {[%clk 0:00:54]}  Nxe1+ {[%clk 0:02:00]} 33. Qxe1 {[%clk 0:00:54]}  Rbc8 {[%clk 0:02:01]} 34. c4 {[%clk 0:00:53]}  Rc5 {[%clk 0:02:02]} 35. Qe3 {[%clk 0:00:53]}  Rdc8 {[%clk 0:02:02]} 36. Bd3 {[%clk 0:00:53]}  g6 {[%clk 0:02:02]} 37. Qe7 {[%clk 0:00:53]}  R8c7 {[%clk 0:02:02]} 38. Qe8+ {[%clk 0:00:53]}  Kg7 {[%clk 0:02:03]} 39. h4 {[%clk 0:00:52]}  h5 {[%clk 0:02:03]} 40. Qe4 {[%clk 0:00:51]}  Rc8 {[%clk 0:02:03]} 41. Qd4+ {[%clk 0:00:51]}  Kg8 {[%clk 0:02:03]} 42. Kf3 {[%clk 0:00:51]}  R8c7 {[%clk 0:02:03]} 43. Qd8+ {[%clk 0:00:51]}  Kg7 {[%clk 0:02:03]} 44. Qd6 {[%clk 0:00:51]}  Kg8 {[%clk 0:02:04]} 45. Ke2 {[%clk 0:00:50]}  Kg7 {[%clk 0:02:02]} 46. Kd2 {[%clk 0:00:50]}  R5c6 {[%clk 0:01:58]} 47. Qd4+ {[%clk 0:00:49]}  Kg8 {[%clk 0:01:58]} 48. Kc3 {[%clk 0:00:49]}  Rc8 {[%clk 0:01:58]} 49. Be4 {[%clk 0:00:50]}  R6c7 {[%clk 0:01:55]} 50. Bd5 {[%clk 0:00:48]}  Rc5 {[%clk 0:01:53]} 51. Kb4 {[%clk 0:00:45]}  R5c7 {[%clk 0:01:52]} 52. Qf6 {[%clk 0:00:46]}  Kh7 {[%clk 0:01:51]} 53. Bxf7 {[%clk 0:00:43]}  Rf8 {[%clk 0:01:44]} 54. Qxg6+ {[%clk 0:00:43]} 1-0


[Site "https://www.chess.com"]

[Event "Titled Tuesday Blitz August 08 Early 2023"]
[White "Pham, Le Thao Nguyen"]
[Black "Gu, Xiaobing"]
[WhiteFideId "12401226"]
[BlackFideId "8602611"]
[WhiteElo "2621"]
[BlackElo "2370"]
[Result "1-0"]
[Round "2"]
[TimeControl "180+1"]
[Date "2023.08.08"]
[WhiteClock "0:00:18"]
[BlackClock "0:00:07"]
[Board "166"]

1. d4 {[%clk 0:03:00]}  Nf6 {[%clk 0:02:59]} 2. c4 {[%clk 0:03:00]}  g6 {[%clk 0:02:59]} 3. Nf3 {[%clk 0:02:49]}  Bg7 {[%clk 0:02:59]} 4. g3 {[%clk 0:02:49]}  d6 {[%clk 0:02:59]} 5. Bg2 {[%clk 0:02:50]}  O-O {[%clk 0:02:59]} 6. O-O {[%clk 0:02:51]}  Nc6 {[%clk 0:02:59]} 7. d5 {[%clk 0:02:46]}  Na5 {[%clk 0:02:56]} 8. Nfd2 {[%clk 0:02:47]}  c5 {[%clk 0:02:47]} 9. Nc3 {[%clk 0:02:44]}  Rb8 {[%clk 0:02:47]} 10. a4 {[%clk 0:02:27]}  e6 {[%clk 0:02:32]} 11. Rb1 {[%clk 0:01:52]}  exd5 {[%clk 0:02:10]} 12. cxd5 {[%clk 0:01:53]}  a6 {[%clk 0:01:38]} 13. b4 {[%clk 0:01:47]}  cxb4 {[%clk 0:01:38]} 14. Rxb4 {[%clk 0:01:48]}  Nd7 {[%clk 0:01:28]} 15. Bb2 {[%clk 0:01:40]}  Qc7 {[%clk 0:01:10]} 16. Nce4 {[%clk 0:01:16]}  Bxb2 {[%clk 0:00:55]} 17. Rxb2 {[%clk 0:01:17]}  f5 {[%clk 0:00:48]} 18. Ng5 {[%clk 0:01:13]}  Ne5 {[%clk 0:00:48]} 19. Qb1 {[%clk 0:01:05]}  Qg7 {[%clk 0:00:41]} 20. Rc1 {[%clk 0:00:59]}  h6 {[%clk 0:00:34]} 21. Ne6 {[%clk 0:00:59]}  Bxe6 {[%clk 0:00:34]} 22. dxe6 {[%clk 0:01:00]}  Nac6 {[%clk 0:00:33]} 23. Rb6 {[%clk 0:00:54]}  Nd4 {[%clk 0:00:32]} 24. Kf1 {[%clk 0:00:44]}  Nec6 {[%clk 0:00:31]} 25. Bd5 {[%clk 0:00:42]}  Qe5 {[%clk 0:00:28]} 26. e7+ {[%clk 0:00:26]}  Qxd5 {[%clk 0:00:27]} 27. exf8=Q+ {[%clk 0:00:26]}  Rxf8 {[%clk 0:00:27]} 28. Nf3 {[%clk 0:00:22]}  Nxf3 {[%clk 0:00:23]} 29. exf3 {[%clk 0:00:23]}  Qxf3 {[%clk 0:00:23]} 30. Qb3+ {[%clk 0:00:24]}  Qxb3 {[%clk 0:00:22]} 31. Rxb3 {[%clk 0:00:25]}  Rf7 {[%clk 0:00:23]} 32. Rd3 {[%clk 0:00:22]}  Rd7 {[%clk 0:00:20]} 33. Rcd1 {[%clk 0:00:22]}  Kf7 {[%clk 0:00:18]} 34. Rxd6 {[%clk 0:00:23]}  Re7 {[%clk 0:00:17]} 35. h4 {[%clk 0:00:22]}  Ne5 {[%clk 0:00:13]} 36. h5 {[%clk 0:00:18]}  gxh5 {[%clk 0:00:10]} 37. Rxh6 {[%clk 0:00:19]}  Rc7 {[%clk 0:00:07]} 38. Rh7+ {[%clk 0:00:18]} 1-0


[Site "https://www.chess.com"]

[Event "Titled Tuesday Blitz August 08 Early 2023"]
[White "K2JW"]
[Black "Bagrationi, Alexander"]
[BlackFideId "14104954"]
[WhiteElo "2364"]
[BlackElo "2605"]
[Result "1-0"]
[Round "2"]
[TimeControl "180+1"]
[Date "2023.08.08"]
[WhiteClock "0:00:24"]
[BlackClock "0:00:49"]
[Board "171"]

1. e4 {[%clk 0:03:00]}  e5 {[%clk 0:02:16]} 2. Nf3 {[%clk 0:02:56]}  Nf6 {[%clk 0:02:14]} 3. d3 {[%clk 0:02:55]}  d5 {[%clk 0:02:13]} 4. exd5 {[%clk 0:02:54]}  Qxd5 {[%clk 0:02:13]} 5. Nc3 {[%clk 0:02:54]}  Bb4 {[%clk 0:02:13]} 6. Bd2 {[%clk 0:02:54]}  Bxc3 {[%clk 0:02:13]} 7. Bxc3 {[%clk 0:02:55]}  Nc6 {[%clk 0:02:13]} 8. Qe2 {[%clk 0:02:53]}  Bg4 {[%clk 0:02:11]} 9. O-O-O {[%clk 0:02:47]}  Bxf3 {[%clk 0:02:11]} 10. gxf3 {[%clk 0:02:46]}  O-O-O {[%clk 0:02:11]} 11. Kb1 {[%clk 0:02:41]}  Nd4 {[%clk 0:02:11]} 12. Qe3 {[%clk 0:02:35]}  Qxf3 {[%clk 0:02:06]} 13. Qxf3 {[%clk 0:02:34]}  Nxf3 {[%clk 0:02:06]} 14. Bg2 {[%clk 0:02:32]}  Nd4 {[%clk 0:02:02]} 15. Rhg1 {[%clk 0:02:18]}  g6 {[%clk 0:02:00]} 16. Rge1 {[%clk 0:02:15]}  Rhe8 {[%clk 0:02:00]} 17. h3 {[%clk 0:02:10]}  c6 {[%clk 0:01:55]} 18. Re3 {[%clk 0:01:59]}  Nh5 {[%clk 0:01:40]} 19. Rde1 {[%clk 0:01:52]}  Nf4 {[%clk 0:01:39]} 20. Bf1 {[%clk 0:01:31]}  f6 {[%clk 0:01:30]} 21. Bxd4 {[%clk 0:01:26]}  Rxd4 {[%clk 0:01:29]} 22. c3 {[%clk 0:01:26]}  Rd6 {[%clk 0:01:21]} 23. d4 {[%clk 0:01:17]}  Rde6 {[%clk 0:01:22]} 24. Bc4 {[%clk 0:01:16]}  R6e7 {[%clk 0:01:21]} 25. Kc2 {[%clk 0:01:10]}  Kd7 {[%clk 0:01:19]} 26. Rd1 {[%clk 0:01:05]}  exd4 {[%clk 0:01:18]} 27. Rxd4+ {[%clk 0:01:04]}  Kc7 {[%clk 0:01:18]} 28. Rxe7+ {[%clk 0:01:03]}  Rxe7 {[%clk 0:01:18]} 29. Rxf4 {[%clk 0:01:04]}  f5 {[%clk 0:01:16]} 30. Rf3 {[%clk 0:01:01]}  Re1 {[%clk 0:01:14]} 31. Re3 {[%clk 0:00:59]}  Rh1 {[%clk 0:01:12]} 32. Re7+ {[%clk 0:00:56]}  Kd6 {[%clk 0:01:13]} 33. Rxh7 {[%clk 0:00:56]}  b5 {[%clk 0:01:13]} 34. Bd3 {[%clk 0:00:55]}  a5 {[%clk 0:01:14]} 35. Rg7 {[%clk 0:00:52]}  Ke5 {[%clk 0:01:11]} 36. Rxg6 {[%clk 0:00:52]}  Rxh3 {[%clk 0:01:11]} 37. Rg3 {[%clk 0:00:51]}  Rh2 {[%clk 0:01:11]} 38. Re3+ {[%clk 0:00:44]}  Kf4 {[%clk 0:01:09]} 39. Re2 {[%clk 0:00:44]}  b4 {[%clk 0:01:07]} 40. cxb4 {[%clk 0:00:43]}  axb4 {[%clk 0:01:07]} 41. Bc4 {[%clk 0:00:38]}  Kf3 {[%clk 0:01:06]} 42. Kb3 {[%clk 0:00:33]}  c5 {[%clk 0:01:03]} 43. Re5 {[%clk 0:00:32]}  f4 {[%clk 0:01:03]} 44. Re2 {[%clk 0:00:27]}  Rh1 {[%clk 0:01:02]} 45. Rc2 {[%clk 0:00:26]}  Re1 {[%clk 0:00:55]} 46. Bd5+ {[%clk 0:00:25]}  Kg4 {[%clk 0:00:53]} 47. f3+ {[%clk 0:00:23]}  Kg3 {[%clk 0:00:53]} 48. Rxc5 {[%clk 0:00:23]}  Re2 {[%clk 0:00:52]} 49. Be4 {[%clk 0:00:22]}  Kf2 {[%clk 0:00:49]} 50. Rc2 {[%clk 0:00:22]}  Rxc2 {[%clk 0:00:47]} 51. Kxc2 {[%clk 0:00:23]}  Ke3 {[%clk 0:00:48]} 52. a4 {[%clk 0:00:23]}  bxa3 {[%clk 0:00:48]} 53. bxa3 {[%clk 0:00:23]}  Kd4 {[%clk 0:00:48]} 54. Kb3 {[%clk 0:00:23]}  Kc5 {[%clk 0:00:49]} 55. a4 {[%clk 0:00:23]}  Kb6 {[%clk 0:00:49]} 56. Kb4 {[%clk 0:00:24]}  Ka7 {[%clk 0:00:50]} 57. a5 {[%clk 0:00:24]}  Ka6 {[%clk 0:00:50]} 58. Ka4 {[%clk 0:00:25]}  Ka7 {[%clk 0:00:51]} 59. Kb5 {[%clk 0:00:26]}  Kb8 {[%clk 0:00:51]} 60. Kb6 {[%clk 0:00:26]}  Kc8 {[%clk 0:00:51]} 61. a6 {[%clk 0:00:26]}  Kb8 {[%clk 0:00:52]} 62. a7+ {[%clk 0:00:26]}  Kc8 {[%clk 0:00:50]} 63. a8=Q+ {[%clk 0:00:27]}  Kd7 {[%clk 0:00:51]} 64. Qc6+ {[%clk 0:00:27]}  Kd8 {[%clk 0:00:51]} 65. Qd6+ {[%clk 0:00:24]}  Ke8 {[%clk 0:00:49]} 66. Bg6# {[%clk 0:00:24]} 1-0


[Site "https://www.chess.com"]

[Event "Titled Tuesday Blitz August 08 Early 2023"]
[White "Gatterer, Florian"]
[Black "Malek, Jan"]
[WhiteFideId "811688"]
[BlackFideId "21864080"]
[WhiteElo "2362"]
[BlackElo "2598"]
[Result "0-1"]
[Round "2"]
[TimeControl "180+1"]
[Date "2023.08.08"]
[WhiteClock "0:00:00"]
[BlackClock "0:00:02"]
[Board "172"]

1. c4 {[%clk 0:03:00]}  b6 {[%clk 0:02:58]} 2. g3 {[%clk 0:02:59]}  Bb7 {[%clk 0:02:58]} 3. Nf3 {[%clk 0:02:59]}  Bxf3 {[%clk 0:02:59]} 4. exf3 {[%clk 0:03:00]}  c5 {[%clk 0:02:59]} 5. d4 {[%clk 0:02:55]}  cxd4 {[%clk 0:02:57]} 6. Qxd4 {[%clk 0:02:55]}  Nc6 {[%clk 0:02:58]} 7. Qd2 {[%clk 0:02:55]}  g6 {[%clk 0:02:55]} 8. Nc3 {[%clk 0:02:55]}  Bg7 {[%clk 0:02:56]} 9. b3 {[%clk 0:02:55]}  Rc8 {[%clk 0:02:56]} 10. Bb2 {[%clk 0:02:55]}  Nf6 {[%clk 0:02:56]} 11. Bg2 {[%clk 0:02:54]}  O-O {[%clk 0:02:55]} 12. f4 {[%clk 0:02:54]}  a6 {[%clk 0:02:13]} 13. O-O {[%clk 0:02:53]}  d6 {[%clk 0:02:09]} 14. Rfd1 {[%clk 0:02:53]}  Nd7 {[%clk 0:02:08]} 15. h4 {[%clk 0:02:47]}  Nc5 {[%clk 0:01:56]} 16. h5 {[%clk 0:02:41]}  Nb4 {[%clk 0:01:50]} 17. Nd5 {[%clk 0:02:24]}  Bxb2 {[%clk 0:01:49]} 18. Qxb2 {[%clk 0:02:24]}  Nxd5 {[%clk 0:01:49]} 19. Rxd5 {[%clk 0:02:18]}  Qd7 {[%clk 0:01:39]} 20. Kh2 {[%clk 0:02:12]}  e6 {[%clk 0:01:33]} 21. Rd2 {[%clk 0:02:06]}  Qe7 {[%clk 0:01:27]} 22. h6 {[%clk 0:01:59]}  f6 {[%clk 0:01:27]} 23. Rad1 {[%clk 0:01:53]}  Rfd8 {[%clk 0:01:14]} 24. Qa3 {[%clk 0:01:25]}  a5 {[%clk 0:01:12]} 25. Qb2 {[%clk 0:01:19]}  Qf8 {[%clk 0:01:12]} 26. Kg1 {[%clk 0:01:16]}  Rc7 {[%clk 0:01:09]} 27. a3 {[%clk 0:01:15]}  a4 {[%clk 0:01:06]} 28. bxa4 {[%clk 0:01:14]}  Nxa4 {[%clk 0:01:06]} 29. Qb4 {[%clk 0:01:13]}  Nc5 {[%clk 0:00:57]} 30. Qxb6 {[%clk 0:01:07]}  Rcd7 {[%clk 0:00:56]} 31. Qb2 {[%clk 0:00:32]}  f5 {[%clk 0:00:52]} 32. Bc6 {[%clk 0:00:31]}  Rc7 {[%clk 0:00:48]} 33. Bf3 {[%clk 0:00:30]}  Rcd7 {[%clk 0:00:43]} 34. Bc6 {[%clk 0:00:29]}  Rc7 {[%clk 0:00:41]} 35. Bf3 {[%clk 0:00:29]}  Kf7 {[%clk 0:00:13]} 36. Kg2 {[%clk 0:00:28]}  Ke7 {[%clk 0:00:13]} 37. Qb6 {[%clk 0:00:27]}  Rcd7 {[%clk 0:00:12]} 38. Bc6 {[%clk 0:00:23]}  Rb8 {[%clk 0:00:13]} 39. Qa5 {[%clk 0:00:22]}  Nb3 {[%clk 0:00:12]} 40. Qc3 {[%clk 0:00:20]}  Nxd2 {[%clk 0:00:12]} 41. Rxd2 {[%clk 0:00:19]}  Rc7 {[%clk 0:00:11]} 42. Bf3 {[%clk 0:00:19]}  Qxh6 {[%clk 0:00:09]} 43. c5 {[%clk 0:00:16]}  Rxc5 {[%clk 0:00:07]} 44. Qd4 {[%clk 0:00:17]}  Rd8 {[%clk 0:00:08]} 45. Qb4 {[%clk 0:00:15]}  Qf8 {[%clk 0:00:08]} 46. a4 {[%clk 0:00:14]}  Rd7 {[%clk 0:00:08]} 47. a5 {[%clk 0:00:13]}  Qc8 {[%clk 0:00:08]} 48. Qd4 {[%clk 0:00:12]}  Kf7 {[%clk 0:00:07]} 49. a6 {[%clk 0:00:09]}  Ra5 {[%clk 0:00:05]} 50. Bb7 {[%clk 0:00:07]}  Rxb7 {[%clk 0:00:05]} 51. axb7 {[%clk 0:00:06]}  Qxb7+ {[%clk 0:00:05]} 52. Kh2 {[%clk 0:00:06]}  Rd5 {[%clk 0:00:04]} 53. Qe3 {[%clk 0:00:05]}  Rxd2 {[%clk 0:00:04]} 54. Qxd2 {[%clk 0:00:06]}  Qd5 {[%clk 0:00:04]} 55. Qc3 {[%clk 0:00:06]}  e5 {[%clk 0:00:04]} 56. Qc7+ {[%clk 0:00:06]}  Kf6 {[%clk 0:00:04]} 57. Qxh7 {[%clk 0:00:06]}  Qd2 {[%clk 0:00:03]} 58. Qh8+ {[%clk 0:00:05]}  Ke6 {[%clk 0:00:04]} 59. Qc8+ {[%clk 0:00:04]}  Kd5 {[%clk 0:00:03]} 60. Qg8+ {[%clk 0:00:03]}  Kd4 {[%clk 0:00:03]} 61. Qxg6 {[%clk 0:00:04]}  Qxf2+ {[%clk 0:00:02]} 62. Kh3 {[%clk 0:00:05]}  Qf1+ {[%clk 0:00:03]} 63. Kh2 {[%clk 0:00:04]}  Ke4 {[%clk 0:00:02]} 64. Qe6 {[%clk 0:00:03]}  Qf2+ {[%clk 0:00:03]} 65. Kh3 {[%clk 0:00:03]}  Qd4 {[%clk 0:00:03]} 66. Qg6 {[%clk 0:00:02]}  Qd1 {[%clk 0:00:02]} 67. Kh4 {[%clk 0:00:00]}  exf4 {[%clk 0:00:02]} 0-1


[Site "https://www.chess.com"]

[Event "Titled Tuesday Blitz August 08 Early 2023"]
[White "Kunin, Vitaly"]
[Black "KorolDimitriy75"]
[WhiteFideId "4128737"]
[WhiteElo "2579"]
[BlackElo "2357"]
[Result "0-1"]
[Round "2"]
[TimeControl "180+1"]
[Date "2023.08.08"]
[WhiteClock "0:00:00"]
[BlackClock "0:00:57"]
[Board "175"]

1. d4 {[%clk 0:02:54]}  Nf6 {[%clk 0:02:59]} 2. c4 {[%clk 0:02:54]}  c5 {[%clk 0:02:59]} 3. d5 {[%clk 0:02:54]}  b5 {[%clk 0:03:00]} 4. cxb5 {[%clk 0:02:54]}  a6 {[%clk 0:03:00]} 5. b6 {[%clk 0:02:54]}  d6 {[%clk 0:02:59]} 6. Nc3 {[%clk 0:02:54]}  Nbd7 {[%clk 0:02:59]} 7. e4 {[%clk 0:02:54]}  g6 {[%clk 0:02:59]} 8. h3 {[%clk 0:02:54]}  Bg7 {[%clk 0:02:59]} 9. Nf3 {[%clk 0:02:55]}  O-O {[%clk 0:03:00]} 10. Be2 {[%clk 0:02:55]}  Nxb6 {[%clk 0:03:00]} 11. O-O {[%clk 0:02:55]}  e6 {[%clk 0:03:00]} 12. dxe6 {[%clk 0:02:53]}  Bxe6 {[%clk 0:03:01]} 13. Bf4 {[%clk 0:02:53]}  d5 {[%clk 0:03:00]} 14. exd5 {[%clk 0:02:53]}  Nfxd5 {[%clk 0:03:01]} 15. Nxd5 {[%clk 0:02:54]}  Nxd5 {[%clk 0:03:01]} 16. Be5 {[%clk 0:02:54]}  Bxe5 {[%clk 0:03:01]} 17. Nxe5 {[%clk 0:02:54]}  Qf6 {[%clk 0:03:01]} 18. Nc4 {[%clk 0:02:54]}  Rfd8 {[%clk 0:02:56]} 19. Qc2 {[%clk 0:02:46]}  Nf4 {[%clk 0:02:49]} 20. Rad1 {[%clk 0:02:41]}  Qg5 {[%clk 0:02:44]} 21. Bf3 {[%clk 0:02:37]}  Nxh3+ {[%clk 0:01:29]} 22. Kh1 {[%clk 0:02:24]}  Nf4 {[%clk 0:01:12]} 23. Bxa8 {[%clk 0:02:21]}  Rxa8 {[%clk 0:01:12]} 24. Qe4 {[%clk 0:02:17]}  Qh4+ {[%clk 0:01:05]} 25. Kg1 {[%clk 0:02:15]}  Nh3+ {[%clk 0:01:05]} 26. gxh3 {[%clk 0:02:15]}  Qxe4 {[%clk 0:01:06]} 27. Nd6 {[%clk 0:02:14]}  Qe5 {[%clk 0:01:01]} 28. Rfe1 {[%clk 0:02:14]}  Qxb2 {[%clk 0:00:59]} 29. Rb1 {[%clk 0:00:00]}  Qxa2 {[%clk 0:00:57]} 0-1


[Site "https://www.chess.com"]